[Event "Asian Amateur-ch Open 2022"]
[Site "Muscat"]
[Date "2022.10.02"]
[Round "3.4"]
[White "Velavaa Ragavesh"]
[Black "Salim Mohammed, Salim Al Amri"]
[Result "1-0"]
[ECO "B31"]
[WhiteElo "1698"]
[BlackElo "1952"]
[Annotator "TA"]
[PlyCount "145"]
[EventDate "2022.09.29"]
[EventType "swiss"]
[SourceTitle "playchess.com"]
[Source "ChessBase"]
[SourceQuality "1"]
[TimeControl "5400+30"]

{[%evp 9,145,6,9,14,0,0,25,-47,0,0,0,-46,-31,-27,-14,-34,-25,-29,-34,-28,-26,-23,-31,-24,-20,-45,-43,-35,-4,-28,-7,-19,-6,-15,0,-3,0,0,0,-9,5,0,0,0,0,-14,85,78,101,93,154,155,178,170,161,168,173,133,155,154,150,154,141,122,114,106,174,158,202,148,137,135,180,102,102,122,122,91,136,133,116,103,128,108,172,148,268,122,126,124,135,115,115,115,369,396,499,461,444,425,414,406,374,388,364,301,547,539,442,410,916,715,1077,1059,916,722,1305,1158,1772,1666,1730,1620,1460,1368,12118,5895,6398,2422,2038,1877,29987,29988,29988,29989,29989,29990,29990,29991]} 1. e4 {[%emt 0:00:09]} c5 {[%emt 0:00:05]} 2. Nf3 {[%emt 0:00:24]} Nc6 {[%emt 0:00:07]} 3. Bb5 {[%emt 0:00:30]} g6 {[%emt 0:00:45]} 4. c3 {[%emt 0:01:00]} Nf6 {[%emt 0:04:00]} 5. Qe2 {[%emt 0:02:33]} Bg7 {[%emt 0:02:00]} 6. d4 {[%emt 0:03:03] B31: Sicilian: 2...Nc6 3 Bb5 g6.} cxd4 {[%emt 0:01:12]} 7. cxd4 {[%emt 0:00:32]} a6 {[%emt 0:01:07]} 8. Bc4 {[%emt 0:03:03] [#]} (8. Bxc6 $11 bxc6 9. O-O) 8... b5 $146 {[%emt 0:02:23]} (8... d5 $15 {is superior.} 9. exd5 Na5) ({Predecessor:} 8... d5 9. exd5 Nxd5 10. Nc3 Be6 11. Be3 Rc8 12. Bxd5 Bxd5 13. Nxd5 Qxd5 14. O-O O-O {0-1 (44) Mitsiou,G (1522)-Stefanou,K (2048) Thessaloniki 2022}) 9. Bb3 $11 {[%emt 0:01:15]} d5 {[%emt 0:06:20]} 10. exd5 {[%emt 0:07:31]} (10. e5 $11 {deserves consideration.} Ne4 11. O-O (11. Nc3 Nxc3 12. bxc3 Na5 $11)) 10... Nxd5 {[%emt 0:00:07]} 11. Nc3 {[%emt 0:00:42]} Be6 {[%emt 0:00:45]} 12. Qe4 {[%emt 0:09:21][%cal Rb3d5]} Ncb4 {[%emt 0:00:54]} 13. Nxd5 {[%emt 0:06:11]} Bxd5 {[%emt 0:06:29]} 14. Bxd5 {[%emt 0:03:40]} Qxd5 {[%emt 0:01:37]} 15. Qxd5 {[%emt 0:00:24]} Nxd5 {[%emt 0:00:02]} 16. Bd2 {[%emt 0:00:38] Against Nb4} O-O {[%emt 0:00:38]} 17. O-O-O {[%emt 0:04:30]} Rfc8+ {[%emt 0:02:46]} 18. Kb1 {[%emt 0:01:58]} Rc4 {[%emt 0:00:22]} 19. Rhe1 {[%emt 0:02:39]} Rd8 {[%emt 0:03:43]} (19... Bxd4 $2 20. b3 Bxf2 21. bxc4 Bxe1 22. Bxe1 $18 (22. cxd5 Bxd2 23. Rxd2 Rd8 $16)) 20. Rc1 {[%emt 0:06:31]} Rdc8 {[%emt 0:03:19]} 21. Rxc4 {[%emt 0:01:27]} bxc4 {[%emt 0:01:00]} 22. Kc2 {[%emt 0:00:56]} e6 {[%emt 0:01:45]} 23. g3 {[%emt 0:43:03]} Bf8 {[%emt 0:00:21]} 24. Bc3 {[%emt 0:00:00]} a5 {[%emt 0:03:49]} 25. a3 {[%emt 0:00:00]} a4 {[%emt 0:01:27]} 26. Nd2 {[%emt 0:00:00]} Be7 {[%emt 0:02:20]} 27. Nf1 {[%emt 0:00:00]} Nxc3 {[%emt 0:03:47]} (27... h5 $11 {keeps the balance.}) 28. bxc3 {[%emt 0:00:00][%mdl 4096] Endgame KRB-KRN} (28. Kxc3 $6 Bd6 $11) 28... Rb8 {[%emt 0:00:27]} 29. Nd2 {[%emt 0:00:00]} Rc8 {[%emt 0:13:09]} (29... Bxa3 $142 30. Ra1 (30. Nxc4 Be7 $16) 30... Rb2+ 31. Kd1 Bf8) 30. Re5 $16 {[%emt 0:00:00]} Bxa3 {[%emt 0:04:31]} 31. Ra5 {[%emt 0:00:00] Prevents Ra8.} Be7 {[%emt 0:01:12]} 32. Rxa4 {[%emt 0:00:00]} h5 {[%emt 0:00:02]} 33. h4 {[%emt 0:00:00]} g5 {[%emt 0:00:02]} 34. hxg5 {[%emt 0:00:00]} ({Stronger than} 34. Rxc4 Rxc4 35. Nxc4 gxh4 $15) ({Worse is} 34. Nxc4 gxh4 35. Kd3 Kg7 $14) 34... Bxg5 {[%emt 0:00:04]} 35. Nxc4 {[%emt 0:00:00]} h4 {[%emt 0:00:19]} 36. gxh4 {[%emt 0:00:00]} Bxh4 {[%emt 0:00:02]} 37. f3 {[%emt 0:00:00]} Bf6 {[%emt 0:00:27]} (37... Kf8 $16 38. Nd6 Rd8) 38. Kd3 $18 {[%emt 0:00:00]} Rb8 {[%emt 0:00:15]} 39. Nd6 {[%emt 0:00:00]} Be7 {[%emt 0:00:34]} 40. Ne4 {[%emt 0:00:00]} Rb1 {[%emt 0:00:23]} 41. Ra7 {[%emt 0:00:00]} ({Better is} 41. c4 $18) 41... Kf8 $16 {[%emt 0:00:21]} 42. Ra8+ {[%emt 0:00:00]} Kg7 {[%emt 0:00:02]} 43. Ra2 {[%emt 0:00:00]} Rf1 {[%emt 0:00:28]} 44. Nd2 {[%emt 0:00:00]} Re1 {[%emt 0:01:38]} 45. Ra5 {[%emt 0:00:00] Against Bg5} Kg6 {[%emt 0:00:15]} 46. Nc4 {[%emt 0:00:11]} f6 {[%emt 0:00:57] Against Ne5+} (46... Bf6 $16 47. f4 Rd1+ 48. Ke4 Rc1) 47. Ne3 $1 $18 {[%emt 0:01:29]} Bf8 {[%emt 0:00:59] [#]} (47... f5 $16 48. Ra6 Kf7) 48. Ra6 {[%emt 0:00:52]} (48. Ng2 $1 $18 {[%cal Rg2e1] and the rest is easy.} Rh1 49. Nf4+ Kf7 50. Ra6) 48... Kf7 $16 {[%emt 0:00:13]} 49. Ra7+ {[%emt 0:00:18]} Kg6 {[%emt 0:00:06]} 50. Ra2 {[%emt 0:00:41]} Bh6 {[%emt 0:00:49]} 51. Re2 {[%emt 0:00:21]} Rc1 {[%emt 0:06:52][%mdl 8192] [#] This costs Black the game.} (51... Rh1 $16 52. Ng4 Kf7) 52. Ng4 $1 $18 {[%emt 0:00:57]} Bg5 {[%emt 0:02:00]} 53. Rxe6 {[%emt 0:00:57]} Rd1+ {[%emt 0:00:20]} 54. Kc4 {[%emt 0:00:21]} Rf1 {[%emt 0:00:36]} 55. d5 {[%emt 0:00:46]} Kf7 {[%emt 0:00:47]} 56. Kb5 {[%emt 0:03:21]} Rxf3 {[%emt 0:00:26]} 57. c4 {[%emt 0:00:03][%cal Bc3c4,Bc4c5][%mdl 32]} Rb3+ $2 {[%emt 0:05:00]} (57... Rf4 58. Ne3 Rf3) 58. Kc6 {[%emt 0:00:30]} Ra3 {[%emt 0:00:53]} 59. Re2 {[%emt 0:03:14]} Rg3 {[%emt 0:01:05]} (59... Ra6+ $142 60. Kc5 Bf4) 60. Nf2 {[%emt 0:00:36]} f5 {[%emt 0:01:53]} 61. d6 {[%emt 0:00:01][%cal Bd5d6,Bd6d7][%mdl 32]} Rc3 {[%emt 0:00:46]} 62. c5 {[%emt 0:00:18] Hoping for d7.} Bf6 {[%emt 0:03:47]} 63. d7 {[%emt 0:01:02]} Be7 {[%emt 0:00:56]} 64. Re5 {[%emt 0:00:34]} Kf6 {[%emt 0:00:46]} 65. Rd5 {[%emt 0:00:03]} Bd8 {[%emt 0:02:31]} 66. Nd3 {[%emt 0:00:12] Black must now prevent Kb7.} Ra3 {[%emt 0:01:01]} 67. Kb7 {[%emt 0:01:21] Intending c6 and mate.} Ra5 {[%emt 0:01:19]} 68. Nf4 {[%emt 0:01:12]} (68. Nb4 $142 Ke6 69. Rd6+ Kf7 70. Nc6 Rb5+ 71. Ka6) 68... Ra4 {[%emt 0:00:41] [#]} 69. c6 $1 {[%emt 0:01:34] Threatening mate with c7.} Rxf4 {[%emt 0:02:16]} (69... Rc4 70. Rd3) 70. c7 {[%emt 0:00:01] White mates.} Rb4+ {[%emt 0:10:36]} 71. Kc8 {[%emt 0:00:07]} Bxc7 {[%emt 0:00:29]} 72. Kxc7 {[%emt 0:00:05]} Rc4+ {[%emt 0:00:31]} 73. Kd6 {[%emt 0:00:02] Weighted Error Value: White=0.15 (very precise) /Black=0.34} 1-0

[Event "Asian Amateur-ch Open 2022"]
[Site "Muscat"]
[Date "2022.10.02"]
[Round "3.5"]
[White "Thapa, Krishna"]
[Black "Ranjith, R.k."]
[Result "1-0"]
[ECO "A81"]
[WhiteElo "1928"]
[BlackElo "1706"]
[Annotator "TA"]
[PlyCount "53"]
[EventDate "2022.09.29"]
[EventType "swiss"]
[SourceTitle "playchess.com"]
[Source "ChessBase"]
[SourceQuality "1"]
[TimeControl "5400+30"]

{[%evp 9,53,0,12,0,13,1,0,0,12,23,23,24,38,32,33,28,75,21,22,41,47,26,194,186,191,186,179,185,216,216,229,187,350,345,309,262,402,400,391,390,385,353,477,447,439,410]} 1. d4 {[%emt 0:00:07]} f5 {[%emt 0:00:11]} 2. g3 {[%emt 0:00:14]} e6 {[%emt 0:00:59]} 3. Bg2 {[%emt 0:00:09]} Nf6 {[%emt 0:01:37]} 4. Bg5 {[%emt 0:01:20]} Be7 {[%emt 0:00:07]} 5. Nd2 {[%emt 0:03:27]} O-O {[%emt 0:01:31]} 6. Nh3 {[%emt 0:01:28] A81: Dutch Defence: 2 g3.} d6 {[%emt 0:00:58]} 7. c3 {[%emt 0:04:11] [#]} Nc6 $146 {[%emt 0:10:21]} ({Predecessor:} 7... c6 8. Qb3 Qe8 9. O-O h6 10. Bxf6 Bxf6 11. e4 d5 12. exd5 exd5 13. Rae1 Qf7 {1-0 (42) Bellon Lopez,J (2415)-Antonano Fedz Quincoces,A Spain 1993}) 8. Qb3 {[%emt 0:02:05] The position is equal.} Kh8 {[%emt 0:13:28]} 9. Nf4 {[%emt 0:16:54]} e5 {[%emt 0:23:44]} 10. dxe5 {[%emt 0:01:40]} dxe5 {[%emt 0:00:02]} 11. Ne6 {[%emt 0:01:57]} Bxe6 {[%emt 0:00:07]} 12. Qxe6 {[%emt 0:00:01]} Nd7 {[%emt 0:04:23]} (12... Ng4 $1 $11 {feels stronger.} 13. Bxe7 Qxe7 14. Qxe7 Nxe7) 13. Bxc6 {[%emt 0:09:54] White has more active pieces.} ({Better is} 13. Bxe7 $16 Nxe7 14. O-O-O) 13... Bxg5 $11 {[%emt 0:00:12]} 14. Nf3 $36 {[%emt 0:01:11][%mdl 2048] White has the initiative.} bxc6 {[%emt 0:00:39]} 15. Rd1 $1 {[%emt 0:02:33]} (15. Nxg5 Qxg5 16. Qxd7 Rad8 17. Qxc6 Qd2+ 18. Kf1 f4 $15) 15... e4 $2 {[%emt 0:13:12] [#] Black cannot hold the game after this.} (15... Nc5 16. Qxc6 Qe7 17. Nxg5 $16) (15... Qf6 $1 $11 {and Black stays safe.} 16. Nxg5 Nb6 17. Qxf6 Rxf6) 16. Rxd7 $18 {[%emt 0:08:21]} Qf6 {[%emt 0:01:26]} 17. Nxg5 {[%emt 0:04:06]} Qxg5 {[%emt 0:00:15]} 18. e3 {[%emt 0:05:03]} Rab8 {[%emt 0:17:10]} 19. b3 {[%emt 0:03:25]} Rbd8 {[%emt 0:02:34]} 20. Qxc6 {[%emt 0:03:11]} h5 $2 {[%emt 0:03:53]} (20... Rxd7 {was called for.} 21. Qxd7 Qd8) 21. h4 {[%emt 0:01:57]} ({Don't play} 21. Qxc7 Rxd7 22. Qxd7 Qf6 $18) (21. Rxc7 Rf6 22. Qb5 Rfd6 $16) 21... Qg4 {[%emt 0:00:03][%cal Of5f4] ...f4! is the strong threat.} 22. O-O {[%emt 0:00:53]} Rde8 {[%emt 0:02:19] [#]} (22... f4 $142 23. Rxd8 (23. Rxc7 {is a self mate.} fxg3) 23... Rxd8 24. Qxc7 Rd2 25. Qxf4 (25. exf4 e3 $11) 25... Qxf4 26. exf4 Rxa2) 23. Rf7 $3 {[%emt 0:03:08][%mdl 512]} Kg8 {[%emt 0:01:23]} 24. Rxf8+ {[%emt 0:01:27]} Rxf8 {[%emt 0:00:01]} 25. Qxc7 {[%emt 0:01:29]} f4 {[%emt 0:01:44]} 26. Qc4+ {[%emt 0:01:52]} Kh8 {[%emt 0:00:31]} 27. Qxe4 {[%emt 0:00:22] Weighted Error Value: White=0.09 (flawless) /Black=0.45} 1-0

[Event "Asian Amateur-ch Open 2022"]
[Site "Muscat"]
[Date "2022.10.02"]
[Round "3.6"]
[White "Al Mamari Mohammed Salim"]
[Black "Fooladi, Behrooz"]
[Result "0-1"]
[ECO "B21"]
[WhiteElo "1685"]
[BlackElo "1928"]
[Annotator "TA"]
[PlyCount "82"]
[EventDate "2022.09.29"]
[EventType "swiss"]
[SourceTitle "playchess.com"]
[Source "ChessBase"]
[SourceQuality "1"]
[TimeControl "5400+30"]

{[%evp 9,82,3,25,-21,3,0,5,-18,-2,-95,-13,-11,-2,-14,0,-25,0,0,36,61,62,26,44,28,87,21,20,-160,-168,-146,-149,-591,-587,-620,-566,-1368,-1345,-1332,-1260,-1527,-825,-1160,-844,-916,-435,-975,-948,-962,-959,-868,-427,-417,-394,-478,-471,-448,-436,-649,-626,-767,-764,-1120,-1046,-1125,-1095,-1042,-1023,-986,-881,-793,-779,-5077,-4954,-1186,-863]} 1. e4 {[%emt 0:00:04]} c5 {[%emt 0:05:20]} 2. d4 {[%emt 0:00:36]} cxd4 {[%emt 0:00:16]} 3. Qxd4 {[%emt 0:00:10]} Nc6 {[%emt 0:00:11]} 4. Qe3 {[%emt 0:00:10]} d6 {[%emt 0:00:14]} 5. Nc3 {[%emt 0:00:37]} Nf6 {[%emt 0:00:12]} 6. f3 {[%emt 0:01:23] B21: Sicilian: 2 f4 and Morra Gambit.} (6. Nf3 $142) 6... g6 {[%emt 0:00:11]} 7. Bc4 {[%emt 0:00:45]} Bg7 {[%emt 0:00:09]} 8. Bd2 {[%emt 0:02:44] The position is equal.} O-O {[%emt 0:00:12] [#]} 9. a3 $146 {[%emt 0:02:09] [#]} (9. O-O-O $11 {remains equal.}) ({Predecessor:} 9. O-O-O Bd7 10. Nge2 a6 11. Rhg1 b5 12. Bd5 Nxd5 13. Nxd5 Rb8 14. Nb4 Nxb4 15. Bxb4 {1-0 (45) Hohenhaus,T-Tesch,D Berlin 2008}) 9... Bd7 {[%emt 0:00:11]} (9... e6 $1 $17 {aiming for ...d5.} 10. Qf2 d5) 10. Nge2 $11 {[%emt 0:01:57]} Rc8 {[%emt 0:00:18]} 11. Ba2 {[%emt 0:01:00]} a6 {[%emt 0:02:11]} 12. h4 {[%emt 0:03:03]} Ne5 {[%emt 0:00:36]} 13. O-O-O {[%emt 0:03:38]} Nc4 {[%emt 0:00:47]} 14. Bxc4 {[%emt 0:03:40]} Rxc4 {[%emt 0:00:03]} 15. g4 {[%emt 0:00:28]} (15. Qd3 $5 {[%cal Rd3c4]} Be6 16. Nf4 $11) 15... b5 {[%emt 0:05:19]} 16. h5 {[%emt 0:00:36]} a5 {[%emt 0:16:00]} (16... b4 $11 {keeps the balance.} 17. axb4 Rxb4) 17. hxg6 {[%emt 0:00:58]} (17. h6 $16 Bh8 18. g5) 17... fxg6 {[%emt 0:00:14] Hoping for ...b4.} 18. Nd5 {[%emt 0:07:35] Inhibits b4.} ({White should try} 18. Qd3 $11) 18... Nxd5 $17 {[%emt 0:02:02]} 19. exd5 {[%emt 0:00:16]} b4 {[%emt 0:00:23] Inhibits Bc3. White must now prevent ...Qc7.} 20. axb4 $2 {[%emt 0:01:02][%mdl 8192] This move loses the game for White.} (20. b3 $17 {was the crucial defense.} Rc7 21. axb4) 20... axb4 $19 {[%emt 0:00:05] Strongly threatening ...Qa5.} 21. Qb3 {[%emt 0:03:02]} Qc7 {[%emt 0:11:04]} 22. Bh6 {[%emt 0:01:39] [#]} Rxf3 $3 {[%emt 0:00:30][%mdl 512]} 23. Rd3 {[%emt 0:03:55]} Bxh6+ {[%emt 0:06:34]} 24. Rxh6 {[%emt 0:00:17]} Rf1+ {[%emt 0:00:08]} 25. Kd2 {[%emt 0:00:26]} Bxg4 {[%emt 0:00:28]} 26. Rh2 {[%emt 0:08:36] Prevents Rf2.} Bf5 {[%emt 0:01:23]} (26... Qc5 $142 27. c3 h5) 27. Nd4 {[%emt 0:04:50]} (27. Ng3 $142 Rf3 28. Nxf5 Rxf5 29. Kc1) 27... Bxd3 {[%emt 0:02:05]} 28. Qxd3 {[%emt 0:03:13] [#]} Rxd4 $1 {[%emt 0:00:25]} 29. Qxd4 {[%emt 0:00:27]} Qc5 {[%emt 0:01:04]} (29... b3 $142 30. c3 Qa5) 30. Qxc5 {[%emt 0:06:24]} dxc5 {[%emt 0:01:33][%mdl 4096] Endgame KR-KR} 31. Kd3 {[%emt 0:00:04]} Rf4 {[%emt 0:00:17] Black is clearly winning.} 32. c3 {[%emt 0:00:14]} h5 {[%emt 0:00:43][%cal Bh7h5,Bh5h4,Bh4h3][%mdl 32]} 33. Re2 {[%emt 0:01:46]} (33. Ke3 $142 Rc4 34. Rg2) 33... Kf7 {[%emt 0:00:24]} 34. Re6 {[%emt 0:00:09]} h4 {[%emt 0:00:40]} 35. Re2 {[%emt 0:06:45]} h3 {[%emt 0:00:41]} 36. Ke3 {[%emt 0:00:22]} Rh4 {[%emt 0:00:21]} 37. Rh2 {[%emt 0:00:11]} Kf6 {[%emt 0:00:24]} 38. Kf3 {[%emt 0:00:10]} Ke5 {[%emt 0:00:17]} 39. Kg3 {[%emt 0:00:38]} g5 {[%emt 0:00:06] Threatens to win with ...bxc3.} 40. c4 {[%emt 0:01:52]} Kd4 {[%emt 0:00:28]} 41. b3 {[%emt 0:00:28]} Ke5 {[%emt 0:46:31] Weighted Error Value: White=1.27/Black=0.88} 0-1

[Event "Asian Amateur-ch Open 2022"]
[Site "Muscat"]
[Date "2022.10.02"]
[Round "3.7"]
[White "Zahmati, Sobhan"]
[Black "Al Amri, Mohammed A"]
[Result "1-0"]
[ECO "D78"]
[WhiteElo "1926"]
[BlackElo "1693"]
[Annotator "TA"]
[PlyCount "83"]
[EventDate "2022.09.29"]
[EventType "swiss"]
[SourceTitle "playchess.com"]
[Source "ChessBase"]
[SourceQuality "1"]
[TimeControl "5400+30"]

{[%evp 11,83,14,24,-5,34,25,25,12,46,47,57,47,66,66,66,56,62,71,131,-167,-163,-155,279,256,328,325,306,310,341,341,366,385,358,283,284,284,277,275,300,0,263,247,250,256,381,284,267,277,378,412,381,354,410,403,431,381,648,623,803,654,752,750,743,737,716,700,1918,1887,29975,29975,29972,29971,29988,29989]} 1. Nf3 {[%emt 0:00:02]} Nf6 {[%emt 0:00:44]} 2. d4 {[%emt 0:00:18]} d5 {[%emt 0:00:19]} 3. g3 {[%emt 0:00:12]} g6 {[%emt 0:00:03]} 4. Bg2 {[%emt 0:00:10]} Bg7 {[%emt 0:00:00]} 5. O-O {[%emt 0:00:11]} O-O {[%emt 0:00:04]} 6. c4 {[%emt 0:00:03]} c6 {[%emt 0:00:01] 6...c6 scores better than 6...dxc4.} 7. a4 {[%emt 0:00:16][%cal Ba2a4,Ba4a5][%mdl 32] D78: Fianchetto Grünfeld: 6 0-0 c6.} Nbd7 {[%emt 0:00:53]} 8. cxd5 {[%emt 0:01:30]} cxd5 {[%emt 0:00:08]} 9. Qb3 {[%emt 0:00:18] [#] White has an edge.} Qb6 $146 {[%emt 0:01:09]} ({Predecessor:} 9... b6 10. Nc3 Bb7 11. a5 e6 12. Bf4 Ne4 13. Rfc1 Re8 14. a6 Bc8 15. Nb5 Rf8 16. Rc7 f5 17. Nxa7 Rb8 18. Nc6 {1-0 (18) Kakranen,A (1798)-Wahlback,S (1226) Helsinki 2013}) 10. Qa3 {[%emt 0:00:02]} Re8 {[%emt 0:01:35]} 11. Nc3 {[%emt 0:02:17][%cal Bb1c3,Bc3d5,Bd5b6,Bb6a8][%mdl 32]} e6 {[%emt 0:01:57]} 12. a5 {[%emt 0:02:57]} Qd8 {[%emt 0:00:59]} 13. Bf4 $36 {[%emt 0:03:37][%mdl 2048] Black is under pressure.} a6 {[%emt 0:04:15] Prevents Nb5.} 14. Rfc1 {[%emt 0:05:44]} Nb8 {[%emt 0:00:36] [#]} (14... b5 $142) 15. Bc7 $2 {[%emt 0:14:55][%mdl 8192] White is more active.} Qxc7 $19 {[%emt 0:06:35]} 16. Nxd5 {[%emt 1:05:58] [#]} Qd8 (16... Nxd5 17. Rxc7 Nxc7 18. Ne5 $17) (16... Qxc1+ $3 $17 {[%mdl 512]} 17. Rxc1 exd5) 17. Nb6 $18 {[%emt 0:00:00]} Nc6 {[%emt 0:10:54] Hoping for ...Rb8.} 18. Nxa8 {[%emt 0:00:00]} Nd5 {[%emt 0:00:11]} 19. e4 {[%emt 0:00:00]} Bf8 {[%emt 0:00:25]} 20. Qa4 {[%emt 0:00:00]} Ndb4 {[%emt 0:02:14]} 21. Nb6 {[%emt 0:00:00]} Bd7 {[%emt 0:02:13]} 22. Nxd7 {[%emt 0:00:00]} Qxd7 {[%emt 0:00:28]} 23. Rc4 {[%emt 0:00:00]} Rd8 {[%emt 0:01:58]} 24. Ra3 {[%emt 0:00:00]} Qe7 {[%emt 0:03:03]} 25. Ra1 $2 {[%emt 0:00:00]} (25. Rb3 $18) 25... Qf6 $2 {[%emt 0:01:29][%mdl 8192]} (25... Qd7 $1 $11 {and Black stays safe.} 26. Qb3 Qc7) 26. Rd1 {[%emt 0:00:00]} Qe7 {[%emt 0:01:00]} 27. h4 {[%emt 0:00:00]} h5 {[%emt 0:00:11]} (27... h6 $142 28. Qa3 Qc7) 28. d5 {[%emt 0:00:00]} exd5 {[%emt 0:02:19]} 29. exd5 {[%emt 0:00:00]} Rxd5 {[%emt 0:02:01]} 30. Rxd5 {[%emt 0:00:00]} Nxd5 {[%emt 0:00:21]} 31. Qd1 {[%emt 0:00:00]} Ndb4 {[%emt 0:01:54]} 32. Ng5 {[%emt 0:00:14]} Qc7 {[%emt 0:02:42]} 33. Qb3 {[%emt 0:02:11] Black must now prevent Rf4.} Qe7 $2 {[%emt 0:02:43]} (33... Bd6 34. Rc3 Qe7) 34. Re4 {[%emt 0:00:36]} Qc7 {[%emt 0:04:03]} 35. Rf4 {[%emt 0:02:35] Bxc6 would kill now.} Ne5 {[%emt 0:01:15]} 36. Rxb4 {[%emt 0:00:33]} Qc1+ {[%emt 0:01:51]} 37. Bf1 {[%emt 0:00:49]} ({Weaker is} 37. Kh2 Bxb4 38. f4 (38. Qxb4 $2 Ng4+ 39. Qxg4 hxg4 $19) (38. Bxb7 Qf1 $11) 38... Ng4+ 39. Kh3 Nf2+ 40. Kh2 Ng4+ 41. Kh3 Nf2+ 42. Kh2 Ng4+ $11) 37... Bxb4 {[%emt 0:01:28]} 38. Qxb4 {[%emt 0:00:17]} Kg7 {[%emt 0:00:09]} 39. Qxb7 {[%emt 0:02:40]} Kf6 {[%emt 0:01:02]} 40. Qxa6+ {[%emt 0:01:02] White mates.} Kg7 {[%emt 0:00:03]} 41. Qb7 {[%emt 0:00:19]} Kf6 {[%emt 0:00:07]} 42. a6 {[%emt 0:00:18] Weighted Error Value: White=0.47/Black=0.84} 1-0

[Event "Asian Amateur-ch Open 2022"]
[Site "Muscat"]
[Date "2022.10.02"]
[Round "3.8"]
[White "Al Hosni, Khalfan"]
[Black "Mahmoody, M. Sadegh"]
[Result "0-1"]
[ECO "B07"]
[WhiteElo "1680"]
[BlackElo "1914"]
[Annotator "TA"]
[PlyCount "60"]
[EventDate "2022.09.29"]
[EventType "swiss"]
[SourceTitle "playchess.com"]
[Source "ChessBase"]
[SourceQuality "1"]
[TimeControl "5400+30"]

{[%evp 11,59,29,46,21,45,-19,-3,-58,-56,-59,31,0,0,-87,-77,-66,-63,-89,-71,-158,-124,-158,-139,-133,-139,-130,-79,-89,-29,-22,-31,-31,-33,-73,-45,-82,-79,-93,-27,-39,-53,-382,-354,-422,-415,-406,-391,-492,-467,-29999]} 1. e4 {[%emt 0:00:02]} d6 {[%emt 0:00:06]} 2. d4 {[%emt 0:00:45]} Nf6 {[%emt 0:00:03]} 3. Nc3 {[%emt 0:00:18]} g6 {[%emt 0:00:01]} 4. Bg5 {[%emt 0:00:23]} Bg7 {[%emt 0:00:07]} 5. Qd2 {[%emt 0:00:23]} h6 {[%emt 0:00:01]} 6. Bf4 {[%emt 0:01:49]} Nc6 {[%emt 0:00:24]} 7. f3 {[%emt 0:03:45] B07: Pirc Defence: Miscellaneous Systems.} a6 {[%emt 0:05:37][%cal Oc6d4] [#]} (7... Nxd4 {is interesting.} 8. Qxd4 e5 9. Bxe5 dxe5 10. Qxe5+ Be6) 8. h4 $146 {[%emt 0:06:01]} (8. Be3 $14) ({Predecessor:} 8. O-O-O Nd7 9. Be3 b5 10. f4 Na5 11. Nf3 Bb7 12. e5 Nb6 13. Bd3 e6 14. Qe2 {1-0 (40) Brkic,A (2584)-Medak,B (2386) Mali Losinj 2016}) 8... Nh5 $11 {[%emt 0:00:14][%cal Bf6h5,Bh5f4,Bf4e6,Be6d4][%mdl 32]} 9. d5 {[%emt 0:06:14]} (9. Be3 $1 $11) 9... Nxf4 $15 {[%emt 0:05:23]} 10. dxc6 {[%emt 0:01:27]} e5 {[%emt 0:00:44]} (10... Be5 $15) 11. g3 {[%emt 0:03:43]} Ne6 {[%emt 0:00:50]} 12. Qd5 {[%emt 0:01:49]} (12. cxb7 $1 $11 Bxb7 13. O-O-O) 12... bxc6 $17 {[%emt 0:00:41]} 13. Qxc6+ {[%emt 0:01:04]} Bd7 {[%emt 0:00:05]} 14. Qc4 {[%emt 0:04:12]} Nd4 {[%emt 0:04:13]} 15. Bd3 {[%emt 0:04:33]} (15. Qd3 $142) 15... Qb8 {[%emt 0:05:30]} 16. Rb1 {[%emt 0:06:58]} Bb5 {[%emt 0:03:16]} 17. Nxb5 {[%emt 0:06:04]} axb5 {[%emt 0:00:11]} 18. Qc3 {[%emt 0:01:01]} Rxa2 {[%emt 0:01:26]} (18... O-O $142 {Hoping for ...Qb7.} 19. Qd2 Rxa2) 19. Ne2 {[%emt 0:02:50]} O-O {[%emt 0:07:30] Black has more active pieces. The white rooks are badly placed.} (19... c5 $17 {...c4 is the strong threat.} 20. Nxd4 exd4) 20. Nxd4 $11 {[%emt 0:01:33]} exd4 {[%emt 0:00:06]} 21. Qc6 {[%emt 0:00:31]} Qa7 $36 {[%emt 0:06:09][%mdl 2048] Black fights for an advantage.} 22. h5 {[%emt 0:03:40] [#]} Rxb2 $1 {[%emt 0:03:15]} 23. Ke2 {[%emt 0:02:20]} (23. Kf2 Rxb1) 23... Rxb1 {[%emt 0:05:17]} 24. Rxb1 {[%emt 0:00:03]} g5 {[%emt 0:00:33]} (24... gxh5 $17 {[%cal Ob5b4]} 25. Qxb5 c5) 25. Rxb5 {[%emt 0:02:06][%cal Oe4e5]} Qa1 {[%emt 0:01:18] White must now prevent ...Qg1.} 26. Rf5 $2 {[%emt 0:03:42][%mdl 8192] Loses the game.} (26. e5 $1 $15) 26... Qg1 {[%emt 0:04:14]} 27. Bc4 {[%emt 0:03:37][%cal Of5f7]} d3+ {[%emt 0:01:34]} 28. cxd3 {[%emt 0:03:32][%cal Of5f7]} Qh2+ {[%emt 0:06:25]} 29. Ke3 {[%emt 0:01:37][%cal Of5f7]} Qxg3 {[%emt 0:00:35][%cal Rg3e1]} 30. Rxf7 {[%emt 0:01:39]} (30. Ke2 $19 Qg2+ 31. Ke3) 30... Qe1# {[%emt 0:39:42] Weighted Error Value: White=0.70/Black=0.21 (precise)} 0-1